Cogmind - Beta 17.1 @@@ ROGUE MODE // 2026.09.06 @ 05:01:56 Player: TheSkyeDoctor Result: Destroyed by G-47 Trooper with Particle Gun Performance ------------- Evolutions (2) 1000 Regions Visited (4) 800 Robots Destroyed (15) 75 Value Destroyed (373) 373 Prototype IDs (0) 0 Alien Tech Used (0) 0 Bonus (0) 0 TOTAL SCORE: 2248 Bonus ------- None Cogmind --------- Core Integrity 0/550 Matter 270/300 Energy 65/100 System Corruption 6% Temperature Cool (9) Movement Core (50) Location -8/Materials Parts ------- > --- POWER (1) -------- (None) > --- PROPULSION (2) --- (None) > --- UTILITY (6) ------ Terrain Scan Processor > --- WEAPON (2) ------- (None) > --- INVENTORY (5) ---- Large Battery (196) Weight Redist. System Improved Targeting Computer Autogun Great Maul Peak State ------------ > --- POWER ------------ Improved Ion Engine > --- PROPULSION ------- Aluminum Leg Aluminum Leg > --- UTILITY ---------- Cooling System Medium Storage Unit Weight Redist. System Improved Terrain Scanner Terrain Scan Processor Improved Medium Armor Plating > --- WEAPON ----------- Beam Rifle Great Maul > --- INVENTORY -------- Ion Engine Ion Engine Aluminum Leg Aluminum Leg Large Battery Improved Targeting Computer Improved Medium Armor Plating Heavy EM Pulse Gun Heavy Assault Rifle Autogun [Rating: 24] Favorites ----------- Power Ion Engine Engine Ion Engine Propulsion Aluminum Leg Treads Light Treads Leg Aluminum Leg Utility Medium Storage Unit Device Seismic Detector Storage Medium Storage Unit Processor Terrain Scan Processor Protection Light Armor Plating Weapon Assault Rifle Energy Gun Beam Rifle Ballistic Gun Assault Rifle Impact Weapon Great Maul Build | -11 -10 -10 -9 -8 ------- Run | Yrd Mat Min Mat Mat Slots Evolved 4 | . . . 2 2 Power . | . . . . . Propulsion . | . . . . . Utility 4 | . . . 2 2 Weapon . | . . . . . Parts Attached 26 | 9 1 . 7 9 Power 3 | 2 . . 1 . Engine 3 | 2 . . 1 . Core . | . . . . . Reactor . | . . . . . Propulsion 5 | 3 . . . 2 Treads 1 | 1 . . . . Leg 4 | 2 . . . 2 Wheel . | . . . . . Hover . | . . . . . Flight . | . . . . . Utility 10 | 2 1 . 3 4 Device 4 | 1 . . 2 1 Storage 2 | 1 1 . . . Processor 1 | . . . . 1 Hackware . | . . . . . Protection 3 | . . . 1 2 Artifact . | . . . . . Weapon 8 | 2 . . 3 3 Energy Gun 3 | . . . 2 1 Energy Cannon . | . . . . . Ballistic Gun 4 | 2 . . 1 1 Ballistic Cannon . | . . . . . Launcher . | . . . . . Special Weapon . | . . . . . Impact Weapon 1 | . . . . 1 Slashing Weapon . | . . . . . Piercing Weapon . | . . . . . Special Melee Weapon . | . . . . . Unidentified Prototypes . | . . . . . Parts Lost 12 | . . . 1 11 Power 1 | . . . . 1 Propulsion 3 | . . . . 3 Utility 4 | . . . . 4 Weapon 4 | . . . 1 3 Highest Loss Streak 10 | . . . 1 10 To Critical Strikes . | . . . . . Average Backups 5 | 1 2 3 6 8 Power 1 | . 1 1 1 1 Propulsion . | . . . 1 1 Utility 2 | . 1 2 2 3 Weapon 1 | . . . 1 2 Tool/Special . | . . . . . Unused Backups 7 | . . . 1 6 Power 2 | . . . . 2 Propulsion . | . . . . . Utility 4 | . . . . 4 Weapon 1 | . . . 1 . Tool/Special . | . . . . . Average Slot Usage (%) 96 | . 100 100 95 95 Engine 11 | . 14 14 11 8 Leg 22 | . 28 28 22 16 Device 19 | . 14 14 18 25 Storage 11 | . 14 14 11 8 Processor 3 | . . . . 8 Protection 6 | . . . 10 8 Energy Gun 6 | . . . 10 9 Ballistic Gun 14 | . 28 28 11 5 Peak Build Rating 24 | 7 7 7 15 24 Average Rating 12 | 5 7 7 11 21 On Entrance 7 | . 7 7 7 15 Avg Prop Armor Cover (%) . | . . . . . Naked Turns . | . . . . . Heaviest Build 34 | 15 20 20 28 34 Greatest Support 26 | 20 20 20 26 26 Greatest Overweight (x) 3 | . . . 1 3 Average Overweight (x) . | . . . . . Largest Inventory Capacity 10 | 8 10 10 10 10 Average Capacity 9 | 7 8 10 10 9 Most Carried 10 | 2 4 3 10 10 Average Carried 5 | 1 2 3 6 8 Final Capacity 10 | 8 10 10 10 5 Final Carried 10 | 2 3 3 10 5 Class Distribution -------------------- 97% | Mutant Dominant Class ---------------- Mutant | -10/Materials Mutant | -10/Mines Mutant | -9/Materials Mutant | -8/Materials Resources | -11 -10 -10 -9 -8 ----------- Run | Yrd Mat Min Mat Mat Matter Collected 528 | 334 10 30 113 41 Remotely . | . . . . . Salvage Created 574 | 145 . 47 287 95 Parts 34 | 13 . 3 16 2 Haulers Intercepted . | . . . . . Recyclers Shooed 1 | 1 . . . . Parts Field Recycled . | . . . . . Retrieved Matter . | . . . . . Parts Self-Destructed . | . . . . . Prevented . | . . . . . Parts Restored . | . . . . . Kills | -11 -10 -10 -9 -8 ------- Run | Yrd Mat Min Mat Mat Combat Hostiles Destroyed 11 | . . 3 6 2 Guns 10 | . . 3 6 1 Classes Destroyed 5 | 2 . 1 2 . Tunneler 3 | 3 . . . . Recycler 1 | 1 . . . . Swarmer 3 | . . 3 . . Grunt 4 | . . . 4 . Sentry 4 | . . . 2 2 Best Kill Streak 3 | 3 . 3 3 1 Combat Bots Only 3 | . . 3 3 1 Max Kills in Single Turn 2 | 1 . 2 1 1 Gunslinging 1 | . . 1 . . Exploded . | . . . . . Melee . | . . . . . Uniques/NPCs Destroyed . | . . . . . Combat | -11 -10 -10 -9 -8 -------- Run | Yrd Mat Min Mat Mat Hostile Shots Fired 207 | . . 11 43 153 Missed 58 | . . 3 17 38 Hits 149 | . . 8 26 115 Projectile 149 | . . 8 26 115 Critical Strikes 5 | . . . . 5 Damage Taken 2195 | . . 62 363 1770 Core 717 | . . . 157 560 Absorbed by Shields . | . . . . . Core Remaining (%) 86 | 100 . 100 60 . Volleys Fired 45 | 9 . 3 20 13 Largest 2 | 2 . 2 2 2 Hottest 101 | 40 . 40 76 101 Shots Fired 89 | 18 . 6 39 26 Gun 89 | 18 . 6 39 26 Cannon . | . . . . . Launcher . | . . . . . Special . | . . . . . Kinetic 47 | 18 . 6 20 3 Thermal 13 | . . . 2 11 Explosive . | . . . . . Electromagnetic 29 | . . . 17 12 Robot Hit Streak 8 | 6 . 2 8 6 Robot Miss Streak 2 | 2 . 1 2 1 Penetration Max . | . . . . . Secondary Targets 1 | . . 1 . . Max Gunslinging Chain 1 | . . 1 . . Shots Hit Robots 66 | 12 . 4 26 24 Core Hits 21 | 5 . 3 9 4 Critical Kills 1 | . . 1 . . Critical Parts Destroyed 1 | . . . . 1 Critical Strikes 6 | . . 1 3 2 Burn 1 | . . . . 1 Destroy 1 | . . 1 . . Corrupt 3 | . . . 3 . Smash 1 | . . . . 1 Melee Attacks 9 | . . . . 9 Impact 9 | . . . . 9 Slashing . | . . . . . Piercing . | . . . . . Sneak Attacks . | . . . . . Combat Hostiles . | . . . . . Follow-up Attacks . | . . . . . Damage Inflicted 1042 | 150 . 49 365 478 Guns 827 | 150 . 49 365 263 Cannons . | . . . . . Explosions . | . . . . . Melee 199 | . . . . 199 Ramming 16 | . . . . 16 Kinetic 379 | 150 . 49 137 43 Thermal 158 | . . . 28 130 Explosive . | . . . . . Electromagnetic 290 | . . . 200 90 Impact 199 | . . . . 199 Slashing . | . . . . . Piercing . | . . . . . Highest Corruption 6 | . . . . 6 Average Corruption 4 | . . . . 4 Corruption Purged . | . . . . . Corruption Blocked . | . . . . . Overload Shots . | . . . . . Overflow Damage 46 | . . . . 46 Projectiles . | . . . . . Explosions . | . . . . . Melee 46 | . . . . 46 Knockbacks . | . . . . . Impact . | . . . . . Kinetic . | . . . . . Secondary . | . . . . . Self-Inflicted Damage 7 | . . . . 7 Shots . | . . . . . Rammed 2 | . . . . 2 Targets Rammed 2 | . . . . 2 Kicked . | . . . . . Crushed . | . . . . . Highest Temperature 75 | . . . 75 64 Average Temperature 26 | . . . 25 46 Received Heat Transfer 948 | . . . 120 828 Siege Activations . | . . . . . Martial Activations . | . . . . . Shielding Activations . | . . . . . Robots Disrupted . | . . . . . Combat Hostiles . | . . . . . Robots Corrupted 1 | . . . . 1 Combat Hostiles 1 | . . . . 1 Parts Fried 4 | . . . . 4 Impact Corruptions 2 | . . . . 2 Robots Melted . | . . . . . Combat Hostiles . | . . . . . Parts Melted 1 | . . . . 1 Heat Transferred 481 | . . . 74 407 Parts Sabotaged . | . . . . . Parts Stolen . | . . . . . Parts Stripped . | . . . . . Power Chain Reactions . | . . . . . Alert | -11 -10 -10 -9 -8 ------- Run | Yrd Mat Min Mat Mat Maximum Alert Level . | . . . . . Low Security (%) 100 | 100 100 100 100 100 Level 1 . | . . . . . Level 2 . | . . . . . Level 3 . | . . . . . Level 4 . | . . . . . Level 5 . | . . . . . High Security . | . . . . . Max Security . | . . . . . Peak Influence 79 | 15 8 70 66 79 Initial 15 | . . . 15 . Average 12 | 1 . 13 24 10 Influence Increases 451 | 20 13 70 152 196 Destroy 0b10 Robot/C 220 | . . 60 120 40 Destroy 0b10 Robot/NC 20 | 20 . . . . Destroy Leader 60 | . . 10 30 20 Successful Hack 13 | . 13 . . . Destroy Structure 3 | . . . 2 1 Lose Combat Pursuer 135 | . . . . 135 Influence Decreases 421 | 20 13 30 192 166 Entered New Map 25 | . . . 25 . Time Decay 295 | 20 13 30 167 65 Lost Part 101 | . . . . 101 Squads Dispatched 4 | . . . 1 3 Investigation . | . . . . . Extermination . | . . . . . Reinforcement 2 | . . . 1 1 Assault . | . . . . . Garrison 2 | . . . . 2 Intercept . | . . . . . Searches Triggered . | . . . . . Construction Impeded . | . . . . . Haulers Reinforced . | . . . . . Active Scanning Responses . | . . . . . Cargo Convoy Interrupts . | . . . . . Stealth | -11 -10 -10 -9 -8 --------- Run | Yrd Mat Min Mat Mat Distress Signals 2 | . . . 1 1 Communications Jammed . | . . . . . Distress Signals . | . . . . . Times Spotted 39 | . . 3 7 29 Peak Tracking Total 18 | . . 3 3 18 Tactical Retreats 4 | . . . . 4 Traps | -11 -10 -10 -9 -8 ------- Run | Yrd Mat Min Mat Mat Traps Triggered 2 | . . . 1 1 Indirectly . | . . . . . Trap Hack Attempts . | . . . . . Triggered . | . . . . . Disarmed . | . . . . . Reprogrammed . | . . . . . Reused . | . . . . . Traps Extracted . | . . . . . Installed . | . . . . . Triggered . | . . . . . Machines | -11 -10 -10 -9 -8 ---------- Run | Yrd Mat Min Mat Mat Machines Disabled . | . . . . . Max in Single Turn . | . . . . . Machines Repaired . | . . . . . Machines Dismantled . | . . . . . Machines Sabotaged . | . . . . . Overloaded Fab Kills . | . . . . . Hacking | -11 -10 -10 -9 -8 --------- Run | Yrd Mat Min Mat Mat Machines Accessed 5 | . 3 . 1 1 Terminals 5 | . 3 . 1 1 Fabricators . | . . . . . Repair Stations . | . . . . . Recycling Units . | . . . . . Scanalyzers . | . . . . . Garrison Access . | . . . . . Total Hacks 14 | . 9 . 2 3 Successful 7 | . 4 . 1 2 Failed 7 | . 5 . 1 1 Catastrophic 4 | . 4 . . . Database Lockouts . | . . . . . Manual 14 | . 9 . 2 3 Terminals 14 | . 9 . 2 3 Fabricators . | . . . . . Repair Stations . | . . . . . Recycling Units . | . . . . . Scanalyzers . | . . . . . Garrison Access . | . . . . . Terminal Hacks 2 | . 1 . . 1 Branch Access Points 2 | . 1 . . 1 Fabricator Hacks . | . . . . . Repair Station Hacks . | . . . . . Recycling Unit Hacks . | . . . . . Scanalyzer . | . . . . . Garrison Access Hacks . | . . . . . Unauthorized Hacks 5 | . 3 . 1 1 Terminals 5 | . 3 . 1 1 Botnet 5 | . 3 . 1 1 Fabricators . | . . . . . Repair Stations . | . . . . . Recycling Units . | . . . . . Scanalyzers . | . . . . . Garrison Access . | . . . . . Data Cores Recovered . | . . . . . Used . | . . . . . Hacking Detections 4 | . 2 . 1 1 Full Trace Events . | . . . . . Feedback Events . | . . . . . Feedback Blocked . | . . . . . Robot Schematics Acquired . | . . . . . Robots Built . | . . . . . Authchips . | . . . . . Time . | . . . . . Total Robot Build Rating . | . . . . . Part Schematics Acquired . | . . . . . Parts Built . | . . . . . Authchips . | . . . . . Time . | . . . . . Total Part Build Rating . | . . . . . Part Studies Acquired . | . . . . . Parts Repaired . | . . . . . Time . | . . . . . Parts Recycled . | . . . . . Recycled Matter . | . . . . . Retrieved Matter . | . . . . . Retrieved Components . | . . . . . Parts Scanalyzed . | . . . . . Part Schematics Acquired . | . . . . . Parts Damaged . | . . . . . Bothacking | -11 -10 -10 -9 -8 ------------ Run | Yrd Mat Min Mat Mat Used RIF Installer . | . . . . . Robots Hacked . | . . . . . Non-combat . | . . . . . Combat . | . . . . . Robot Hacks Applied . | . . . . . Relay Couplers Released . | . . . . . Fabnet Peak Effective % . | . . . . . Robots Rewired . | . . . . . Allies Hacked . | . . . . . Hacks Repelled . | . . . . . Allies | -11 -10 -10 -9 -8 -------- Run | Yrd Mat Min Mat Mat Total Allies . | . . . . . Largest Group . | . . . . . Highest-Rated Group . | . . . . . Highest-Rated Ally . | . . . . . Total Orders . | . . . . . Ally Attacks . | . . . . . Total Damage . | . . . . . Kills . | . . . . . Allies Corrupted . | . . . . . Allies Melted . | . . . . . Intel | -11 -10 -10 -9 -8 ------- Run | Yrd Mat Min Mat Mat Active Infowar (turns) 1227 | 11 204 243 327 442 Terrain 442 | . . . . 442 Seismic 785 | 11 204 243 327 . Robot Analysis Total . | . . . . . Derelict Logs Recovered . | . . . . . Drone Launches . | . . . . . Drone Recoveries . | . . . . . Exploration | -11 -10 -10 -9 -8 ------------- Run | Yrd Mat Min Mat Mat Turns Passed 1508 | 153 204 243 433 475 Spaces Moved 899 | 94 167 194 230 214 Core 41 | 5 . . . 36 Treads 4 | 4 . . . . Legs 854 | 85 167 194 230 178 Wheels . | . . . . . Hover . | . . . . . Flight . | . . . . . Fastest Speed 50 | 50 120 120 120 50 Average Speed 136 | 117 120 120 140 167 Slowest Speed 260 | 160 120 120 190 260 Overloaded Moves . | . . . . . Propulsion Burnouts . | . . . . . Robots Hopped . | . . . . . Potential Cave-ins . | . . . . . Cave-ins Triggered . | . . . . . Exploration Rate (%) 26 | 5 32 48 22 25 Regions Visited 4 Branch Regions 1 Pre-discovered Areas . | . . . . . Known Exits Taken 1 | . 1 . . . Unknown Exits Taken 3 | 1 . 1 1 . Scrap Searched . | . . . . . Spaces Dug 1 | . . . . 1 Terrain Destroyed 1 | . . . . 1 Melee 1 | . . . . 1 Projectile . | . . . . . AOE . | . . . . . Terrain Rammed . | . . . . . Walls Destroyed . | . . . . . Machines Disabled . | . . . . . Actions | -11 -10 -10 -9 -8 --------- Run | Yrd Mat Min Mat Mat Total 1075 | 114 171 198 301 291 Wait 60 | . . . 31 29 Move 895 | 93 166 193 229 214 Hop . | . . . . . Pick Up 17 | 1 2 . 9 5 Fast Attach 13 | 8 . . 5 . Attach 8 | . . 1 1 6 Detach 5 | 1 . 1 1 2 Swap 7 | 1 1 . 1 4 Drop 14 | 1 2 . 4 7 Fire 45 | 9 . 3 20 13 Melee 9 | . . . . 9 Ram 2 | . . . . 2 Kick . | . . . . . Crush . | . . . . . Escape Stasis . | . . . . . Rewire . | . . . . . Trap . | . . . . . Miscellaneous . | . . . . . Route ------- -11/Scrapyard -10/Materials -10/Mines -9/Materials (discovered 2 exits: *Mat / [*Sto]) -8/Materials History --------- Turn | Location | Event 10 | -11/Scrapyard | Discovered new exit (range 16) 154 | -11/Scrapyard | Entered Materials 322 | -10/Materials | Build established: Mutant 325 | -10/Materials | Identified exit to Mines 358 | -10/Materials | Entered Mines 394 | -10/Mines | Met a Derelict bent on vengeance 518 | -10/Mines | Assembled infested the area 523 | -10/Mines | Assisted by a Guerilla fighting off Assembled 577 | -10/Mines | Discovered new exit (range 5) 601 | -10/Mines | Entered Materials 601 | -9/Materials | Evolved 2 slots: Utility x2 868 | -9/Materials | Discovered new exit (range 8) 955 | -9/Materials | Discovered new exit (range 15) 1034 | -9/Materials | Entered another Materials area 1034 | -8/Materials | Evolved 2 slots: Utility x2 1342 | -8/Materials | Garrison activated, responded to threat 1487 | -8/Materials | Core integrity fell below 50% 1501 | -8/Materials | Core integrity fell below 20% 1509 | -8/Materials | Destroyed by G-47 Trooper with Particle Gun Last Messages --------------- 01467_ Hvy. Assault Rifle destroyed. 01473_ Imp. Medium Armor Plating destroyed. 01475_ Aluminum Leg destroyed. 01475_ Critical hit (Burn: +37). 01476_ Imp. Terrain Scanner destroyed. 01478_ Imp. Ion Engine destroyed. 01485_ Critical hit (Burn: +37). 01487_ Hvy. EM Pulse Gun destroyed. 01487_ Dropped Med. Storage Unit. 01489_ Imp. Medium Armor Plating destroyed. 01489_ Dropped Ion Engine. 01491_ Slammed into K-01 Serf. 01491_ Cooling System destroyed. 01491_ System corrupted by crushing effect (+4). 01492_ Slammed into U-05 Engineer. 01502_ Triggered Shock Trap. 01502_ The floor emits a surge of raw power. 01502_ System corrupted (+2). 01508_ W-25 Informer sends out distress signal. 01509_ U-05 Engineer destroyed. Map ----- +----------------------------------------------------+ | ?????????????????????????????????????????????????? | | ?????????????????????????????????????????????????? | | ?????????????????????????????????????????????????? | | ?????????????????????????????????????????????????? | | ?????????????????????????????????????????????????? | | ?????????????????????????????????????????????????? | | ?????????????????????????????????????????????????? | | ?????????????????????????????????????????????????? | | ?????????????????????????????????????????????????? | | ????????????????????????? ???????????????????????? | | ?????????????????????????g???????????????????????? | | ?????????????????????????g???????????????????????? | | ?????##########??????????b???????????????????????? | | ?????# / #?????????? ???????????????????????? | | ?????# #?????????? ???????????????????????? | | ? ??# #?????????? ???????????????????????? | | ????## #?????????# #??????????????????????? | | ? ??# #?????????# #??????????????????????? | | ??? ?# #?????????# #??????????????????????? | | ?????? #?????????# #??????????????????????? | | ? ? ?? ? #?????????# #??????????????????????? | | ??????? ? #?????????# #??????????????????????? | | ############g######+#####a#??????????????????????? | | k g #??????????????????????? | | ggg =| #??????????????????????? | | a !%* @#??????????????????????? | | ############/########## #??????????????????????? | | ##???###?? ????????# #??????????????????????? | | ?##?????#??"""?"??????# #??????????????????????? | | ###?##?#??""""""???#### #??#???????????????????? | | #?##? ??"""""?" #???# ??? ??????????????????? | | #### ? ?? """"""? ?? w ?????????????????????? | | ##?? ? # """"""??#?### ? ? ???????????????? | | ####?? ??? ?? ? ?#####+##### ? ???????#????????? | | + ???# ? ? ?# ? ????##???##??#??#???????? | | ## #" ? #####?####????? ?????# ? #??#??#????????? | | ## #T? #?###?#?#?## ??"?????##?? #??????????????? | | ## #? ##?#?#??##?# "?""? ?? #??????????????? | | ## # ? #?##?#?###?#? ?? "? #? #?? ? ?????????? | | ## ####??###?############??###? #?? ? ? ??#????? | | ## #?######?### ####### # ????????????? | | ## ####?#?###?#! ^ # ?"????? ?????? | | ## ########?###== ^ + "?? "????????? | | ?# #?#######??#== # "?????? ?????? | | ## ####?#######[[ #"T"### # ? ? ????????? | | ## ###?########[[ ### ######### # ??? ?? ?????? | | ## #?################ ######### #####???#??????? | | ## ##################+######### #?#####??#?#???? | | ## ################## # ####?????##????? | | ## ####?#??########## T # ######??#??????? | +----------------------------------------------------+ Best States ------------- Heat Dissipation 53 Energy Generation 12 Energy Capacity 265 Matter Stores 300 Matter Capacity 300 Sight Range 16 Terrain Scan Range 16 Terrain Scan Density 85 Additional Mass Support 6 Armor Coverage 225 Evasion (%) 55 Recoil Reduction 1 Item Schematics ----------------- None Robot Schematics ------------------ None Fabricated ------------ Nothing Repaired ---------- Nothing Studied --------- None Alien Tech Used ----------------- None Achievements -------------- None Challenges ------------ None Game ------ Seed ParticleDeepFacilitator Manual? 0 Play Time 00:10:09 Cumulative 197.2 hours Start 2026.09.06 @ 04:52:13 End 2026.09.06 @ 05:01:56 Sessions 1 Manual Loads 0 Difficulty Rogue Special Mode None Game No. 386 Rogue 386 Adventurer 0 Explorer 0 Win Type - Total 2 Types 2/0/0/0/0/0/0/0/0/0 Lore% 59 Gallery% 61 Achievement% 48 Wizard Run 0 Options --------- Layout 2 ASCII 0 Keyboard 1 Movement Arrows Keybinds 0 Fullscreen 1 Font 24/Smallcaps Map View 50x44 Zoom Use 0% Tactical HUD 1 Map Filters NONE Filters NONE Steam 1 RUN: 6b3e092d-0d4d-411c-9542-3cd40f9d58f5